[Event "FIDE Womens World Cup 2021"]
[Site "Sochi"]
[Date "2021.07.16"]
[Round "2.2"]
[White "Vaishali R"]
[Black "Khotenashvili, Bela"]
[Result "0-1"]
[ECO "B12"]
[WhiteElo "2393"]
[BlackElo "2471"]
[Annotator "ChessBase"]
[PlyCount "110"]
[EventDate "2021.07.12"]
[EventType "k.o."]
[EventCountry "RUS"]
[SourceTitle "playchess.com"]
[Source "ChessBase"]
[SourceQuality "1"]
[TimeControl "40/5400+30:1800+30"]

1. e4 {[%emt 0:00:12]} c6 {[%emt 0:00:06]} 2. d4 {[%emt 0:00:14]} d5 {[%emt 0:00:07]} 3. e5 {[%emt 0:00:08]} Bf5 {[%emt 0:00:05]} 4. Nd2 {[%emt 0:00:12]} e6 {[%emt 0:01:29]} 5. Nb3 {[%emt 0:00:06]} Ne7 {[%emt 0:05:27]} 6. Nf3 {[%emt 0:00:13]} h6 {[%emt 0:05:32]} 7. Be2 {[%emt 0:00:11]} Bh7 {[%emt 0:00:47]} 8. O-O {[%emt 0:00:27]} Nf5 {[%emt 0:00:04]} 9. Bd2 {[%emt 0:02:41]} Be7 {[%emt 0:04:28]} 10. a4 {[%emt 0:05:19]} a5 {[%emt 0:03:20]} 11. g4 {[%emt 0:09:26]} Nh4 {[%emt 0:00:59]} 12. Nxh4 {[%emt 0:00:07]} Bxh4 {[%emt 0:00:05]} 13. f4 {[%emt 0:00:14]} Nd7 {[%emt 0:15:59]} 14. Bf3 {[%emt 0:06:25]} O-O {[%emt 0:03:01]} 15. Be3 {[%emt 0:10:56]} f5 {[%emt 0:15:19]} 16. h3 {[%emt 0:18:03]} fxg4 {[%emt 0:01:19]} 17. Bxg4 {[%emt 0:01:16]} Bf5 {[%emt 0:05:09]} 18. Kh2 {[%emt 0:02:26]} Be7 {[%emt 0:07:31]} 19. Rg1 {[%emt 0:02:40]} Qe8 {[%emt 0:01:24]} 20. Rg2 {[%emt 0:08:31]} Kh7 {[%emt 0:03:52]} 21. Qe1 {[%emt 0:06:26]} b6 {[%emt 0:04:28]} 22. Qg3 {[%emt 0:01:06]} g6 {[%emt 0:02:01]} 23. h4 {[%emt 0:09:22]} Bxg4 {[%emt 0:07:34]} 24. Qxg4 {[%emt 0:00:03]} Qf7 {[%emt 0:00:06]} 25. Rag1 {[%emt 0:06:22]} Rg8 {[%emt 0:00:04]} 26. Nd2 {[%emt 0:00:21]} Qf5 {[%emt 0:06:24]} 27. Nf3 {[%emt 0:03:32]} Qxg4 {[%emt 0:01:09]} 28. Rxg4 {[%emt 0:00:03]} b5 {[%emt 0:02:05]} 29. b3 {[%emt 0:05:41]} bxa4 {[%emt 0:00:43]} 30. bxa4 {[%emt 0:00:02]} Nb6 {[%emt 0:02:01]} 31. Rb1 {[%emt 0:00:27]} Rgb8 {[%emt 0:00:33]} 32. Rbg1 {[%emt 0:01:36]} Rg8 {[%emt 0:00:01]} 33. Bd2 {[%emt 0:01:17]} Nc4 {[%emt 0:00:49]} 34. Bc3 {[%emt 0:00:40]} Rab8 {[%emt 0:00:58]} 35. Nd2 {[%emt 0:00:28]} Ne3 {[%emt 0:01:31]} 36. R4g3 {[%emt 0:00:08]} Nf5 {[%emt 0:00:14]} 37. Rh3 {[%emt 0:01:00]} c5 {[%emt 0:01:21]} 38. Nb3 {[%emt 0:00:34]} cxd4 {[%emt 0:00:29]} 39. Nxd4 {[%emt 0:00:33]} Bc5 {[%emt 0:00:16]} 40. Nxe6 {[%emt 0:00:29]} Bxg1+ {[%emt 0:00:06]} 41. Kxg1 {[%emt 0:30:03]} Rb1+ {[%emt 0:30:56]} 42. Kf2 {[%emt 0:00:00]} Rc1 {[%emt 0:00:00]} 43. Ke2 {[%emt 0:00:00]} Rxc2+ {[%emt 0:00:00]} 44. Kd1 {[%emt 0:00:00]} Ra2 {[%emt 0:00:00]} 45. Bd2 {[%emt 0:00:00]} Ra1+ {[%emt 0:00:00]} 46. Ke2 {[%emt 0:00:00]} Rxa4 {[%emt 0:00:00]} 47. Rb3 {[%emt 0:00:00]} Re8 {[%emt 0:00:00]} 48. Rb7+ {[%emt 0:00:00]} Re7 {[%emt 0:00:00]} 49. Nf8+ {[%emt 0:00:00]} Kg7 {[%emt 0:00:00]} 50. Rb8 {[%emt 0:00:00]} Nd4+ {[%emt 0:00:00]} 51. Kd3 {[%emt 0:00:00]} Rf7 {[%emt 0:00:00]} 52. f5 {[%emt 0:01:36]} Rxf8 {[%emt 0:00:00]} 53. Rb7+ {[%emt 0:01:04]} Kg8 {[%emt 0:00:24]} 54. f6 {[%emt 0:00:32]} Nc6 {[%emt 0:00:58]} 55. Bc3 {[%emt 0:01:43]} d4 {[%emt 0:00:10]} 0-1

[Event "FIDE Womens World Cup 2021"]
[Site "Sochi"]
[Date "2021.07.16"]
[Round "2.2"]
[White "Cori T., Deysi"]
[Black "Kosteniuk, Alexandra"]
[Result "0-1"]
[ECO "A05"]
[WhiteElo "2388"]
[BlackElo "2472"]
[Annotator "ChessBase"]
[PlyCount "96"]
[EventDate "2021.07.12"]
[EventType "k.o."]
[EventCountry "RUS"]
[SourceTitle "playchess.com"]
[Source "ChessBase"]
[SourceQuality "1"]
[TimeControl "40/5400+30:1800+30"]

1. Nf3 {[%emt 0:00:08]} Nf6 {[%emt 0:00:07]} 2. g3 {[%emt 0:00:20]} c5 {[%emt 0:00:10]} 3. Bg2 {[%emt 0:01:07]} Nc6 {[%emt 0:00:16]} 4. O-O {[%emt 0:13:31]} e5 {[%emt 0:00:19]} 5. d3 {[%emt 0:02:14]} d5 {[%emt 0:00:10]} 6. c4 {[%emt 0:10:05]} Be7 {[%emt 0:05:46]} 7. Bg5 {[%emt 0:08:01]} dxc4 {[%emt 0:09:07]} 8. dxc4 {[%emt 0:07:15]} Qxd1 {[%emt 0:02:02]} 9. Rxd1 {[%emt 0:00:15]} Be6 {[%emt 0:01:23]} 10. Nc3 {[%emt 0:10:32]} Bxc4 {[%emt 0:01:44]} 11. Bxf6 {[%emt 0:04:01]} gxf6 {[%emt 0:09:47]} 12. e3 {[%emt 0:11:28]} Be6 {[%emt 0:06:14]} 13. Nd5 {[%emt 0:01:42]} Rc8 {[%emt 0:05:44]} 14. Nd2 {[%emt 0:01:11]} b6 {[%emt 0:11:17]} 15. Ne4 {[%emt 0:01:26]} f5 {[%emt 0:05:50]} 16. Nec3 {[%emt 0:01:02]} O-O {[%emt 0:06:52]} 17. Bf1 {[%emt 0:00:11]} Bd8 {[%emt 0:03:30]} 18. Nb5 {[%emt 0:04:54]} Kg7 {[%emt 0:00:48]} 19. a3 {[%emt 0:01:51]} Bg5 {[%emt 0:05:23]} 20. Nbc7 {[%emt 0:10:25]} f4 {[%emt 0:02:15]} 21. Ba6 {[%emt 0:02:59]} fxe3 {[%emt 0:04:32]} 22. h4 {[%emt 0:04:52]} exf2+ {[%emt 0:01:10]} 23. Kxf2 {[%emt 0:00:01]} Bh6 {[%emt 0:00:07]} 24. Bxc8 {[%emt 0:00:28]} Bxc8 {[%emt 0:00:04]} 25. Nf6 {[%emt 0:01:35]} Kxf6 {[%emt 0:03:03]} 26. Rd6+ {[%emt 0:00:04]} Kg7 {[%emt 0:00:04]} 27. Rxc6 {[%emt 0:00:13]} Rd8 {[%emt 0:00:05]} 28. Re1 {[%emt 0:01:37]} Rd2+ {[%emt 0:08:15]} 29. Re2 {[%emt 0:00:18]} Rxe2+ {[%emt 0:01:21]} 30. Kxe2 {[%emt 0:00:01]} Bg4+ {[%emt 0:00:07]} 31. Kf2 {[%emt 0:01:36]} Bc1 {[%emt 0:01:47]} 32. Ne8+ {[%emt 0:00:16]} Kf8 {[%emt 0:00:24]} 33. Nf6 {[%emt 0:00:16]} Be6 {[%emt 0:03:07]} 34. Nxh7+ {[%emt 0:00:23]} Ke7 {[%emt 0:00:03]} 35. Rc7+ {[%emt 0:00:06]} Kd6 {[%emt 0:00:09]} 36. Rxa7 {[%emt 0:00:10]} e4 {[%emt 0:01:27]} 37. Nf6 {[%emt 0:01:31]} Ke5 {[%emt 0:01:37]} 38. Nd7+ {[%emt 0:00:39]} Kd4 {[%emt 0:00:04]} 39. Nxb6 {[%emt 0:00:07]} Kd3 {[%emt 0:01:30]} 40. Ra8 {[%emt 0:01:07]} e3+ {[%emt 0:01:37]} 41. Kf3 {[%emt 0:30:18]} Bxb2 {[%emt 0:01:48]} 42. Rd8+ {[%emt 0:00:00]} Bd4 {[%emt 0:00:15]} 43. Na4 {[%emt 0:00:00]} Kc2 {[%emt 0:08:55]} 44. h5 {[%emt 0:00:00]} Bc4 {[%emt 0:02:24]} 45. h6 {[%emt 0:00:00]} e2 {[%emt 0:01:15]} 46. Re8 {[%emt 0:00:00]} Kd2 {[%emt 0:03:02]} 47. h7 {[%emt 0:03:12]} Bd5+ {[%emt 0:00:40]} 48. Kf4 {[%emt 0:00:25]} Be6 {[%emt 0:00:12]} 0-1

[Event "FIDE Womens World Cup 2021"]
[Site "Sochi"]
[Date "2021.07.16"]
[Round "2.2"]
[White "Maltsevskaya, Aleksandra"]
[Black "Stefanova, Antoaneta"]
[Result "0-1"]
[ECO "C54"]
[WhiteElo "2382"]
[BlackElo "2463"]
[Annotator "ChessBase"]
[PlyCount "54"]
[EventDate "2021.07.12"]
[EventType "k.o."]
[EventCountry "RUS"]
[SourceTitle "playchess.com"]
[Source "ChessBase"]
[SourceQuality "1"]
[TimeControl "40/5400+30:1800+30"]

1. e4 {[%emt 0:00:05]} e5 {[%emt 0:00:06]} 2. Nf3 {[%emt 0:00:27]} Nc6 {[%emt 0:00:05]} 3. d4 {[%emt 0:00:12]} exd4 {[%emt 0:03:22]} 4. Bc4 {[%emt 0:00:08]} Bc5 {[%emt 0:15:05]} 5. c3 {[%emt 0:00:38]} Nf6 {[%emt 0:02:34]} 6. e5 {[%emt 0:09:44]} d5 {[%emt 0:00:29]} 7. Bb5 {[%emt 0:00:17]} Ne4 {[%emt 0:00:34]} 8. Nxd4 {[%emt 0:01:32]} O-O {[%emt 0:06:33]} 9. Bxc6 {[%emt 0:09:04]} bxc6 {[%emt 0:00:39]} 10. Nd2 {[%emt 0:09:27]} Qg5 {[%emt 0:22:57]} 11. O-O {[%emt 0:09:22]} Qxe5 {[%emt 0:00:29]} 12. Nxc6 {[%emt 0:02:19]} Nxf2 {[%emt 0:05:31]} 13. Rxf2 {[%emt 0:03:29]} Bxf2+ {[%emt 0:00:07]} 14. Kxf2 {[%emt 0:00:03]} Qf6+ {[%emt 0:00:13]} 15. Qf3 {[%emt 0:00:20]} Qxc6 {[%emt 0:00:06]} 16. Nb3 {[%emt 0:00:04]} a5 {[%emt 0:03:18]} 17. Nd4 {[%emt 0:04:50]} Qd6 {[%emt 0:05:31]} 18. Kg1 {[%emt 0:06:08]} c5 {[%emt 0:01:27]} 19. Ne2 {[%emt 0:03:29]} Ba6 {[%emt 0:05:47]} 20. Ng3 {[%emt 0:00:15]} Rfe8 {[%emt 0:00:45]} 21. Bg5 {[%emt 0:05:19]} Qe5 {[%emt 0:04:56]} 22. h4 {[%emt 0:04:42]} d4 {[%emt 0:02:37]} 23. cxd4 {[%emt 0:05:14]} Qxd4+ {[%emt 0:02:29]} 24. Kh2 {[%emt 0:00:14]} Qxb2 {[%emt 0:00:26]} 25. Rc1 {[%emt 0:00:22]} Bb7 {[%emt 0:02:39]} 26. Qf1 {[%emt 0:00:11]} Qxa2 {[%emt 0:04:17]} 27. Rxc5 {[%emt 0:03:36]} Re1 {[%emt 0:01:39]} 0-1

[Event "FIDE Womens World Cup 2021"]
[Site "Sochi"]
[Date "2021.07.16"]
[Round "2.2"]
[White "Padmini, Rout"]
[Black "Khademalsharieh, Sarasadat"]
[Result "1/2-1/2"]
[ECO "C55"]
[WhiteElo "2370"]
[BlackElo "2494"]
[Annotator "ChessBase"]
[PlyCount "118"]
[EventDate "2021.07.12"]
[EventType "k.o."]
[EventCountry "RUS"]
[SourceTitle "playchess.com"]
[Source "ChessBase"]
[SourceQuality "1"]
[TimeControl "40/5400+30:1800+30"]

1. e4 {[%emt 0:00:09]} e5 {[%emt 0:00:09]} 2. Nf3 {[%emt 0:00:13]} Nc6 {[%emt 0:00:07]} 3. Bc4 {[%emt 0:00:37]} Nf6 {[%emt 0:00:12]} 4. d4 {[%emt 0:00:35]} exd4 {[%emt 0:00:23]} 5. e5 {[%emt 0:00:11]} d5 {[%emt 0:00:19]} 6. Bb5 {[%emt 0:00:20]} Ne4 {[%emt 0:00:13]} 7. Nxd4 {[%emt 0:00:21]} Bd7 {[%emt 0:00:21]} 8. Bxc6 {[%emt 0:00:42]} bxc6 {[%emt 0:00:06]} 9. O-O {[%emt 0:00:12]} Bc5 {[%emt 0:00:23]} 10. f3 {[%emt 0:01:04]} Ng5 {[%emt 0:00:24]} 11. f4 {[%emt 0:00:20]} Ne4 {[%emt 0:00:37]} 12. Be3 {[%emt 0:00:17]} Qb8 {[%emt 0:00:33]} 13. b3 {[%emt 0:00:31]} O-O {[%emt 0:14:46]} 14. Qd3 {[%emt 0:01:29]} f6 {[%emt 0:05:01]} 15. Nd2 {[%emt 0:03:50]} Nxd2 {[%emt 0:08:50]} 16. Qxd2 {[%emt 0:00:15]} Qb6 {[%emt 0:06:54]} 17. c3 {[%emt 0:06:32]} a5 {[%emt 0:00:24]} 18. a3 {[%emt 0:12:25]} fxe5 {[%emt 0:08:59]} 19. fxe5 {[%emt 0:00:18]} Bxd4 {[%emt 0:01:23]} 20. Bxd4 {[%emt 0:02:00]} c5 {[%emt 0:00:34]} 21. Bf2 {[%emt 0:02:38]} Qc6 {[%emt 0:05:41]} 22. Qe3 {[%emt 0:01:51]} Rfe8 {[%emt 0:03:50]} 23. Rae1 {[%emt 0:03:51]} c4 {[%emt 0:04:36]} 24. bxc4 {[%emt 0:07:18]} Qxc4 {[%emt 0:01:22]} 25. Bg3 {[%emt 0:07:26]} Be6 {[%emt 0:05:46]} 26. Rf4 {[%emt 0:02:50]} Qc6 {[%emt 0:00:26]} 27. Bf2 {[%emt 0:05:19]} Rab8 {[%emt 0:02:40]} 28. Qd3 {[%emt 0:07:41]} Bf7 {[%emt 0:03:51]} 29. Bd4 {[%emt 0:03:23]} Bg6 {[%emt 0:00:54]} 30. Qg3 {[%emt 0:03:32]} Qe6 {[%emt 0:06:44]} 31. Bc5 {[%emt 0:08:00]} Rb5 {[%emt 0:02:11]} 32. Qf2 {[%emt 0:02:35]} h6 {[%emt 0:00:33]} 33. a4 {[%emt 0:03:23]} Rb3 {[%emt 0:02:10]} 34. Bd4 {[%emt 0:03:04]} Reb8 {[%emt 0:03:14]} 35. h3 {[%emt 0:01:16]} Kh7 {[%emt 0:04:38]} 36. Qg3 {[%emt 0:04:07]} Rb1 {[%emt 0:02:04]} 37. Rxb1 {[%emt 0:01:07]} Rxb1+ {[%emt 0:00:04]} 38. Kh2 {[%emt 0:00:03]} Ra1 {[%emt 0:01:18]} 39. c4 {[%emt 0:06:34]} Rxa4 {[%emt 0:01:10]} 40. cxd5 {[%emt 0:00:08]} Qxd5 {[%emt 0:00:04]} 41. Bb2 {[%emt 0:30:33]} Ra2 {[%emt 0:14:35]} 42. Rf2 {[%emt 0:00:00]} Qb5 {[%emt 0:02:56]} 43. Bc3 {[%emt 0:00:00]} Rxf2 {[%emt 0:08:57]} 44. Qxf2 {[%emt 0:00:00]} a4 {[%emt 0:02:42]} 45. e6 {[%emt 0:00:00]} Qc4 {[%emt 0:02:09]} 46. Qg3 {[%emt 0:00:00]} Qxe6 {[%emt 0:01:08]} 47. Qxc7 {[%emt 0:00:00]} Bf7 {[%emt 0:01:21]} 48. Qg3 {[%emt 0:00:00]} Qg6 {[%emt 0:02:38]} 49. Qxg6+ {[%emt 0:00:00]} Kxg6 {[%emt 0:00:05]} 50. Kg3 {[%emt 0:00:00]} Bd5 {[%emt 0:00:06]} 51. Kf2 {[%emt 0:00:00]} a3 {[%emt 0:00:23]} 52. g3 {[%emt 0:00:00]} Kf7 {[%emt 0:00:12]} 53. h4 {[%emt 0:00:00]} g6 {[%emt 0:00:13]} 54. Ke3 {[%emt 0:00:00]} Ke6 {[%emt 0:00:05]} 55. Kd2 {[%emt 0:00:00]} Kf5 {[%emt 0:00:16]} 56. Kc2 {[%emt 0:00:00]} Ke4 {[%emt 0:00:26]} 57. Bb4 {[%emt 0:00:00]} Kf3 {[%emt 0:00:11]} 58. Bd6 {[%emt 0:00:00]} a2 {[%emt 0:00:27]} 59. Kb2 {[%emt 0:00:00]} h5 1/2-1/2

[Event "FIDE Womens World Cup 2021"]
[Site "Sochi"]
[Date "2021.07.16"]
[Round "2.2"]
[White "Abrahamyan, Tatev"]
[Black "Muzychuk, Anna"]
[Result "0-1"]
[ECO "C54"]
[WhiteElo "2352"]
[BlackElo "2527"]
[Annotator "ChessBase"]
[PlyCount "124"]
[EventDate "2021.07.12"]
[EventType "k.o."]
[EventCountry "RUS"]
[SourceTitle "playchess.com"]
[Source "ChessBase"]
[SourceQuality "1"]
[TimeControl "40/5400+30:1800+30"]

1. e4 {[%emt 0:00:03]} e5 {[%emt 0:00:06]} 2. Nf3 {[%emt 0:00:05]} Nc6 {[%emt 0:00:08]} 3. Bc4 {[%emt 0:00:06]} Bc5 {[%emt 0:00:10]} 4. c3 {[%emt 0:00:13]} Nf6 {[%emt 0:00:09]} 5. d3 {[%emt 0:00:04]} d6 {[%emt 0:00:14]} 6. Bg5 {[%emt 0:00:20]} h6 {[%emt 0:01:53]} 7. Bh4 {[%emt 0:00:19]} a6 {[%emt 0:05:01]} 8. O-O {[%emt 0:03:48]} Qe7 {[%emt 0:03:53]} 9. Nbd2 {[%emt 0:05:12]} Ba7 {[%emt 0:02:21]} 10. a4 {[%emt 0:01:12]} g5 {[%emt 0:02:40]} 11. Bg3 {[%emt 0:00:39]} Nh7 {[%emt 0:02:33]} 12. Re1 {[%emt 0:12:51]} h5 {[%emt 0:05:38]} 13. h4 {[%emt 0:03:10]} g4 {[%emt 0:02:32]} 14. Nh2 {[%emt 0:00:15]} Nf8 {[%emt 0:01:16]} 15. Nhf1 {[%emt 0:22:43]} Ng6 {[%emt 0:01:03]} 16. Ne3 {[%emt 0:00:38]} Bxe3 {[%emt 0:05:54]} 17. fxe3 {[%emt 0:03:56]} Nxh4 {[%emt 0:02:26]} 18. Rf1 {[%emt 0:03:58]} Rh7 {[%emt 0:04:49]} 19. b4 {[%emt 0:05:58]} Ng6 {[%emt 0:02:49]} 20. b5 {[%emt 0:09:19]} Na5 {[%emt 0:05:01]} 21. bxa6 {[%emt 0:03:30]} bxa6 {[%emt 0:11:54]} 22. Bd5 {[%emt 0:01:17]} c6 {[%emt 0:00:22]} 23. Ba2 {[%emt 0:00:29]} Qg5 {[%emt 0:01:29]} 24. Qe2 {[%emt 0:02:53]} h4 {[%emt 0:01:04]} 25. Be1 {[%emt 0:00:07]} g3 {[%emt 0:01:24]} 26. Nf3 {[%emt 0:01:49]} Qh6 {[%emt 0:05:20]} 27. Rb1 {[%emt 0:06:53]} Nb7 {[%emt 0:04:33]} 28. d4 {[%emt 0:01:59]} Nd8 {[%emt 0:00:44]} 29. dxe5 {[%emt 0:04:27]} dxe5 {[%emt 0:00:26]} 30. Rd1 {[%emt 0:00:05]} Bg4 {[%emt 0:06:08]} 31. Rd6 {[%emt 0:02:02]} h3 {[%emt 0:02:54]} 32. Bxg3 {[%emt 0:00:45]} hxg2 {[%emt 0:04:51]} 33. Rfd1 {[%emt 0:01:56]} Qh1+ {[%emt 0:05:29]} 34. Kf2 {[%emt 0:00:06]} Nh4 {[%emt 0:01:03]} 35. Bxh4 {[%emt 0:01:55]} Qxh4+ {[%emt 0:03:34]} 36. Nxh4 {[%emt 0:00:27]} Bxe2 {[%emt 0:00:02]} 37. Kxe2 {[%emt 0:00:30]} Rxh4 {[%emt 0:00:02]} 38. Kf3 {[%emt 0:01:53]} Rb8 {[%emt 0:01:11]} 39. R6d2 {[%emt 0:01:05]} Rh3+ {[%emt 0:01:01]} 40. Kf2 {[%emt 0:00:29]} Rh4 {[%emt 0:02:49]} 41. Bc4 {[%emt 0:17:08]} a5 {[%emt 0:05:29]} 42. Kf3 {[%emt 0:04:01]} Rh1 {[%emt 0:03:33]} 43. Kxg2 {[%emt 0:00:41]} Rxd1 {[%emt 0:00:07]} 44. Rxd1 {[%emt 0:00:01]} Rb2+ {[%emt 0:00:17]} 45. Kf3 {[%emt 0:00:42]} Rc2 {[%emt 0:00:17]} 46. Rd3 {[%emt 0:01:21]} Ke7 {[%emt 0:00:51]} 47. Bb3 {[%emt 0:04:22]} Rb2 {[%emt 0:00:18]} 48. Bc4 {[%emt 0:00:20]} Nb7 {[%emt 0:03:02]} 49. Rd1 {[%emt 0:00:41]} Nd6 {[%emt 0:01:21]} 50. Bd3 {[%emt 0:00:43]} Rb3 {[%emt 0:00:44]} 51. Ke2 {[%emt 0:01:26]} Rxc3 {[%emt 0:01:54]} 52. Kd2 {[%emt 0:00:07]} Ra3 {[%emt 0:00:14]} 53. Rc1 {[%emt 0:00:23]} Rxa4 {[%emt 0:02:03]} 54. Rxc6 {[%emt 0:00:17]} Nxe4+ {[%emt 0:00:29]} 55. Kc2 {[%emt 0:01:38]} Nd6 {[%emt 0:00:40]} 56. Rc5 {[%emt 0:00:38]} e4 {[%emt 0:02:58]} 57. Ba6 {[%emt 0:01:27]} Ra3 {[%emt 0:00:18]} 58. Kb2 {[%emt 0:01:09]} Rxe3 {[%emt 0:00:12]} 59. Rxa5 {[%emt 0:00:01]} Ke6 {[%emt 0:00:33]} 60. Kc2 {[%emt 0:00:19]} f5 {[%emt 0:00:18]} 61. Kd2 {[%emt 0:00:33]} f4 {[%emt 0:01:43]} 62. Be2 {[%emt 0:00:44]} Rg3 {[%emt 0:00:29]} 0-1

[Event "FIDE Womens World Cup 2021"]
[Site "Sochi"]
[Date "2021.07.16"]
[Round "2.2"]
[White "Yu, Jennifer"]
[Black "Saduakassova, Dinara"]
[Result "0-1"]
[ECO "C50"]
[WhiteElo "2289"]
[BlackElo "2483"]
[Annotator "ChessBase"]
[PlyCount "182"]
[EventDate "2021.07.12"]
[EventType "k.o."]
[EventCountry "RUS"]
[SourceTitle "playchess.com"]
[Source "ChessBase"]
[SourceQuality "1"]
[TimeControl "40/5400+30:1800+30"]

1. e4 {[%emt 0:00:05]} e5 {[%emt 0:00:06]} 2. Bc4 {[%emt 0:00:09]} Nf6 {[%emt 0:02:16]} 3. d3 {[%emt 0:00:11]} Nc6 {[%emt 0:00:51]} 4. Nf3 {[%emt 0:00:38]} Bc5 {[%emt 0:02:10]} 5. O-O {[%emt 0:00:15]} d6 {[%emt 0:04:56]} 6. c3 {[%emt 0:00:39]} a6 {[%emt 0:00:45]} 7. a4 {[%emt 0:00:28]} Ba7 {[%emt 0:02:29]} 8. Re1 {[%emt 0:06:54]} h6 {[%emt 0:07:55]} 9. Be3 {[%emt 0:07:01]} Bxe3 {[%emt 0:05:01]} 10. Rxe3 {[%emt 0:00:08]} O-O {[%emt 0:01:24]} 11. Nbd2 {[%emt 0:01:44]} Re8 {[%emt 0:02:36]} 12. b4 {[%emt 0:08:40]} Nh5 {[%emt 0:12:05]} 13. d4 {[%emt 0:10:40]} Nf4 {[%emt 0:07:51]} 14. Nf1 {[%emt 0:20:05]} exd4 {[%emt 0:05:17]} 15. cxd4 {[%emt 0:06:28]} Bg4 {[%emt 0:03:29]} 16. Ng3 {[%emt 0:10:02]} d5 {[%emt 0:11:34]} 17. exd5 {[%emt 0:00:08]} Ne7 {[%emt 0:04:10]} 18. h3 {[%emt 0:04:06]} Bd7 {[%emt 0:00:29]} 19. Ne5 {[%emt 0:02:42]} Nexd5 {[%emt 0:10:30]} 20. Nxf7 {[%emt 0:00:21]} Qh4 {[%emt 0:00:10]} 21. Rxe8+ {[%emt 0:03:34]} Rxe8 {[%emt 0:01:27]} 22. Ne5 {[%emt 0:00:23]} Be6 {[%emt 0:00:16]} 23. Qf3 {[%emt 0:05:49]} Rf8 {[%emt 0:01:20]} 24. Qe4 {[%emt 0:00:32]} Qf6 {[%emt 0:00:41]} 25. Nd3 {[%emt 0:06:06]} c6 {[%emt 0:06:52]} 26. Nxf4 {[%emt 0:03:57]} Nxf4 {[%emt 0:00:03]} 27. Nh5 {[%emt 0:00:33]} Qf7 {[%emt 0:00:56]} 28. Qxf4 {[%emt 0:01:14]} Bxc4 {[%emt 0:00:07]} 29. Qxf7+ {[%emt 0:00:44]} Bxf7 {[%emt 0:02:38]} 30. Ng3 {[%emt 0:00:35]} Rd8 {[%emt 0:00:09]} 31. Rd1 {[%emt 0:00:22]} Bb3 {[%emt 0:00:08]} 32. Rd3 {[%emt 0:00:43]} Bxa4 {[%emt 0:00:17]} 33. Nh5 {[%emt 0:00:21]} Bc2 {[%emt 0:02:41]} 34. Rc3 {[%emt 0:00:25]} Bb1 {[%emt 0:01:07]} 35. Rb3 {[%emt 0:00:45]} Bg6 {[%emt 0:01:04]} 36. Nf4 {[%emt 0:00:16]} Bf7 {[%emt 0:00:03]} 37. Rd3 {[%emt 0:00:06]} g5 {[%emt 0:00:08]} 38. Ne2 {[%emt 0:00:59]} Bc4 {[%emt 0:00:07]} 39. Rd2 {[%emt 0:00:03]} Bxe2 {[%emt 0:00:06]} 40. Rxe2 {[%emt 0:00:03]} Rxd4 {[%emt 0:00:04]} 41. Rb2 {[%emt 0:30:06]} Kf7 {[%emt 0:31:57]} 42. g3 {[%emt 0:00:00]} Ke6 {[%emt 0:00:00]} 43. Kg2 {[%emt 0:00:00]} Kf5 {[%emt 0:00:00]} 44. Kf3 h5 {[%emt 0:00:00]} 45. Ke3 {[%emt 0:00:00]} Rc4 {[%emt 0:00:00]} 46. Kd3 {[%emt 0:00:00]} b5 {[%emt 0:00:00]} 47. Ra2 {[%emt 0:00:00]} Rxb4 {[%emt 0:00:00]} 48. Rxa6 {[%emt 0:00:00]} c5 {[%emt 0:00:00]} 49. Rc6 {[%emt 0:00:00]} Rd4+ {[%emt 0:00:00]} 50. Ke3 {[%emt 0:00:00]} Re4+ {[%emt 0:00:00]} 51. Kd3 {[%emt 0:00:00]} Re5 {[%emt 0:00:00]} 52. Rh6 {[%emt 0:00:00]} c4+ {[%emt 0:00:00]} 53. Kd4 {[%emt 0:00:00]} Re2 {[%emt 0:00:00]} 54. f3 {[%emt 0:00:00]} Rd2+ {[%emt 0:00:00]} 55. Ke3 {[%emt 0:00:00]} Rd3+ {[%emt 0:00:00]} 56. Ke2 {[%emt 0:00:00]} b4 {[%emt 0:00:00]} 57. Rc6 {[%emt 0:00:00]} Rc3 {[%emt 0:00:00]} 58. Rc5+ {[%emt 0:00:00]} Kf6 {[%emt 0:00:00]} 59. Kd2 {[%emt 0:00:16]} Rxf3 {[%emt 0:00:00]} 60. Rxc4 {[%emt 0:00:04]} Rxg3 {[%emt 0:00:00]} 61. Rxb4 {[%emt 0:02:31]} Rxh3 {[%emt 0:00:00]} 62. Ke2 {[%emt 0:00:02]} h4 {[%emt 0:00:19]} 63. Kf2 {[%emt 0:00:06]} Rg3 {[%emt 0:00:11]} 64. Ra4 {[%emt 0:01:05]} Kg6 {[%emt 0:00:05]} 65. Rb4 {[%emt 0:00:23]} Kh5 {[%emt 0:00:06]} 66. Ra4 {[%emt 0:00:01]} Rb3 {[%emt 0:00:21]} 67. Ra5 {[%emt 0:03:02]} Rb4 {[%emt 0:00:27]} 68. Kf3 {[%emt 0:01:25]} Rf4+ {[%emt 0:00:12]} 69. Kg2 {[%emt 0:00:03]} Kg4 {[%emt 0:00:04]} 70. Ra3 {[%emt 0:00:56]} Rb4 {[%emt 0:00:29]} 71. Ra2 {[%emt 0:02:57]} h3+ {[%emt 0:00:16]} 72. Kh2 {[%emt 0:00:02]} Kh4 {[%emt 0:00:06]} 73. Ra8 {[%emt 0:00:12]} Rb2+ {[%emt 0:00:12]} 74. Kg1 {[%emt 0:00:05]} g4 {[%emt 0:00:18]} 75. Ra4 {[%emt 0:00:20]} Re2 {[%emt 0:01:05]} 76. Rb4 {[%emt 0:03:13]} Kg3 {[%emt 0:00:28]} 77. Rb3+ {[%emt 0:00:01]} Kf4 {[%emt 0:00:08]} 78. Rb4+ {[%emt 0:00:09]} Kf3 {[%emt 0:00:10]} 79. Rb3+ {[%emt 0:00:07]} Re3 {[%emt 0:00:09]} 80. Rb1 {[%emt 0:00:06]} Kg3 {[%emt 0:00:45]} 81. Kh1 {[%emt 0:01:39]} Rf3 {[%emt 0:00:33]} 82. Rc1 {[%emt 0:00:23]} Re3 {[%emt 0:01:23]} 83. Kg1 {[%emt 0:00:49]} Kf4 {[%emt 0:00:31]} 84. Rf1+ {[%emt 0:00:28]} Rf3 {[%emt 0:03:44]} 85. Ra1 {[%emt 0:00:05]} g3 {[%emt 0:01:45]} 86. Ra4+ {[%emt 0:00:53]} Ke3 {[%emt 0:00:18]} 87. Ra3+ {[%emt 0:00:08]} Ke2 {[%emt 0:00:04]} 88. Ra2+ {[%emt 0:00:06]} Kd1 {[%emt 0:00:04]} 89. Ra1+ {[%emt 0:00:08]} Kc2 {[%emt 0:00:04]} 90. Ra2+ {[%emt 0:00:42]} Kb1 {[%emt 0:00:06]} 91. Re2 {[%emt 0:00:21]} Rc3 {[%emt 0:00:06]} 0-1